[Event "FIDE Grand Swiss 2023"]
[Site "Villa Marina, Douglas, Isle of Man, Isle Of Man"]
[Date "2023.10.26"]
[Round "2.11"]
[White "Fedoseev, Vladimir"]
[Black "L'ami, Erwin"]
[Result "0-1"]
[TimeControl "40/90 + 30 + 30s/move"]
[WhiteClock "00:12:41"]
[BlackClock "00:03:19"]
[WhiteFideId "24130737"]
[BlackFideId "1007998"]
[WhiteElo "2691"]
[BlackElo "2627"]

1. d4 {[%clk 01:40:31]} {[%emt 00:00:29]} d5 {[%clk 01:40:41]} {[%emt
00:00:19]} 2. c4 {[%clk 01:40:52]} {[%emt 00:00:08]} c6 {[%clk 01:40:51]}
{[%emt 00:00:21]} 3. Nf3 {[%clk 01:41:03]} {[%emt 00:00:19]} Nf6 {[%clk
01:41:12]} {[%emt 00:00:09]} 4. e3 {[%clk 01:41:13]} {[%emt 00:00:21]} Bf5
{[%clk 01:41:00]} {[%emt 00:00:42]} 5. Nc3 {[%clk 01:41:29]} {[%emt 00:00:13]}
e6 {[%clk 01:41:21]} {[%emt 00:00:09]} 6. Nh4 {[%clk 01:41:47]} {[%emt
00:00:11]} Bg6 {[%clk 01:41:37]} {[%emt 00:00:14]} 7. Be2 {[%clk 01:42:09]}
{[%emt 00:00:08]} Nbd7 {[%clk 01:39:27]} {[%emt 00:02:40]} 8. O-O {[%clk
01:42:06]} {[%emt 00:00:34]} Be7 {[%clk 01:39:00]} {[%emt 00:00:56]} 9. g3
{[%clk 01:41:53]} {[%emt 00:00:44]} dxc4 {[%clk 01:37:39]} {[%emt 00:01:51]} 10.
Bxc4 {[%clk 01:34:30]} {[%emt 00:07:54]} Bh5 {[%clk 01:36:27]} {[%emt
00:01:41]} 11. Be2 {[%clk 01:34:47]} {[%emt 00:00:12]} Bxe2 {[%clk 01:36:05]}
{[%emt 00:00:52]} 12. Qxe2 {[%clk 01:35:10]} {[%emt 00:00:08]} c5 {[%clk
01:29:23]} {[%emt 00:07:12]} 13. dxc5 {[%clk 01:30:25]} {[%emt 00:05:16]} Nxc5
{[%clk 01:26:21]} {[%emt 00:03:31]} 14. Rd1 {[%clk 01:30:39]} {[%emt 00:00:16]}
Qb6 {[%clk 01:23:02]} {[%emt 00:03:49]} 15. e4 {[%clk 01:26:54]} {[%emt
00:04:14]} Qc6 {[%clk 01:09:27]} {[%emt 00:14:05]} 16. e5 {[%clk 01:17:27]}
{[%emt 00:09:57]} Nfe4 {[%clk 01:02:02]} {[%emt 00:07:55]} 17. Nb5 {[%clk
01:07:20]} {[%emt 00:10:38]} O-O {[%clk 00:53:14]} {[%emt 00:09:17]} 18. Nf3
{[%clk 01:03:43]} {[%emt 00:04:07]} Rad8 {[%clk 00:35:32]} {[%emt 00:18:12]} 19.
Nfd4 {[%clk 00:53:33]} {[%emt 00:10:41]} Qb6 {[%clk 00:30:09]} {[%emt
00:05:53]} 20. b4 {[%clk 00:44:41]} {[%emt 00:09:22]} Na4 {[%clk 00:21:37]}
{[%emt 00:09:02]} 21. Qxe4 {[%clk 00:36:12]} {[%emt 00:09:00]} a6 {[%clk
00:20:54]} {[%emt 00:01:12]} 22. Qg4 {[%clk 00:36:01]} {[%emt 00:00:39]} h5
{[%clk 00:17:56]} {[%emt 00:03:29]} 23. Qxh5 {[%clk 00:36:24]} {[%emt
00:00:07]} axb5 {[%clk 00:18:19]} {[%emt 00:00:07]} 24. Be3 {[%clk 00:36:30]}
{[%emt 00:00:24]} Qa6 {[%clk 00:13:20]} {[%emt 00:05:30]} 25. Qg4 {[%clk
00:35:57]} {[%emt 00:01:03]} Rfe8 {[%clk 00:12:54]} {[%emt 00:00:56]} 26. Rdc1
{[%clk 00:26:30]} {[%emt 00:09:58]} Nb2 {[%clk 00:08:43]} {[%emt 00:04:40]} 27.
Nf3 {[%clk 00:24:00]} {[%emt 00:03:00]} Nc4 {[%clk 00:08:20]} {[%emt 00:00:53]}
28. Bh6 {[%clk 00:23:54]} {[%emt 00:00:36]} Bf8 {[%clk 00:08:11]} {[%emt
00:00:40]} 29. Bg5 {[%clk 00:21:35]} {[%emt 00:02:49]} Rd5 {[%clk 00:07:51]}
{[%emt 00:00:49]} 30. Bf6 {[%clk 00:20:50]} {[%emt 00:01:16]} Qa3 {[%clk
00:06:57]} {[%emt 00:01:23]} 31. Re1 {[%clk 00:18:37]} {[%emt 00:02:43]} Qd3
{[%clk 00:06:32]} {[%emt 00:00:55]} 32. Re4 {[%clk 00:18:30]} {[%emt 00:00:38]}
Nd2 {[%clk 00:05:51]} {[%emt 00:01:10]} 33. Nxd2 {[%clk 00:18:52]} {[%emt
00:00:08]} Qxd2 {[%clk 00:06:18]} {[%emt 00:00:03]} 34. Bg5 {[%clk 00:14:01]}
{[%emt 00:05:21]} Qb2 {[%clk 00:06:12]} {[%emt 00:00:36]} 35. Rae1 {[%clk
00:14:22]} {[%emt 00:00:09]} Rc8 {[%clk 00:06:30]} {[%emt 00:00:11]} 36. a3
{[%clk 00:10:11]} {[%emt 00:04:42]} Qxa3 {[%clk 00:05:02]} {[%emt 00:01:59]} 37.
Qh3 {[%clk 00:09:43]} {[%emt 00:00:57]} Rc4 {[%clk 00:04:56]} {[%emt 00:00:36]}
38. R4e3 {[%clk 00:08:28]} {[%emt 00:01:46]} Qxb4 {[%clk 00:04:15]} {[%emt
00:01:11]} 39. Qh5 {[%clk 00:07:45]} {[%emt 00:01:12]} Qc5 {[%clk 00:02:25]}
{[%emt 00:02:19]} 40. Rf3 {[%clk 00:07:12]} {[%emt 00:01:05]} g6 {[%clk
00:01:19]} {[%emt 00:01:35]} 41. Qh3 {[%clk 00:02:39]} {[%emt 00:05:02]} Rxe5
{[%clk 00:49:37]} {[%emt 00:02:13]} 42. Be3 {[%clk 00:50:39]} {[%emt 00:02:31]}
Qd5 {[%clk 00:45:57]} {[%emt 00:04:09]} 43. g4 {[%clk 00:51:08]} Ree4 {[%clk
00:41:49]} {[%emt 00:04:38]} 44. Rg3 {[%clk 00:50:03]} {[%emt 00:01:37]} Bd6
{[%clk 00:40:52]} {[%emt 00:01:26]} 45. Rg2 {[%clk 00:50:32]} {[%emt 00:00:01]}
Bf4 {[%clk 00:37:35]} {[%emt 00:03:47]} 46. Ra1 {[%clk 00:49:49]} {[%emt
00:01:14]} Ra4 {[%clk 00:37:00]} {[%emt 00:01:04]} 47. Rc1 {[%clk 00:50:02]}
{[%emt 00:00:17]} Rec4 {[%clk 00:36:56]} {[%emt 00:00:34]} 48. Rf1 {[%clk
00:50:28]} {[%emt 00:00:04]} Qe5 {[%clk 00:24:08]} {[%emt 00:13:18]} 49. Bxf4
{[%clk 00:49:02]} {[%emt 00:01:56]} Qxf4 {[%clk 00:24:09]} {[%emt 00:00:29]} 50.
Rg3 {[%clk 00:48:33]} {[%emt 00:01:00]} Rc1 {[%clk 00:22:56]} {[%emt 00:01:42]}
51. Rxc1 {[%clk 00:48:53]} {[%emt 00:00:10]} Qxc1+ {[%clk 00:23:19]} {[%emt
00:00:07]} 52. Qf1 {[%clk 00:49:21]} {[%emt 00:00:02]} Rc4 {[%clk 00:17:12]}
{[%emt 00:06:37]} 53. Qxc1 {[%clk 00:49:26]} {[%emt 00:00:26]} Rxc1+ {[%clk
00:17:32]} {[%emt 00:00:09]} 54. Kg2 {[%clk 00:49:54]} b4 {[%clk 00:17:15]}
{[%emt 00:00:49]} 55. Rd3 {[%clk 00:50:10]} {[%emt 00:00:13]} Rc5 {[%clk
00:05:50]} {[%emt 00:11:56]} 56. h4 {[%clk 00:49:47]} Rb5 {[%clk 00:05:26]}
{[%emt 00:01:47]} 57. Rb3 {[%clk 00:50:16]} Kf8 {[%clk 00:04:46]} {[%emt
00:01:11]} 58. Kf3 {[%clk 00:47:24]} Ke7 {[%clk 00:05:03]} {[%emt 00:03:35]} 59.
Ke3 {[%clk 00:44:14]} Kd6 {[%clk 00:03:17]} {[%emt 00:05:55]} 60. Kd2 {[%clk
00:40:35]} Rd5+ {[%clk 00:02:31]} {[%emt 00:05:26]} 61. Kc2 {[%clk 00:40:41]}
Rd4 {[%clk 00:02:45]} {[%emt 00:00:40]} 62. Rg3 {[%clk 00:40:41]} Rc4+ {[%clk
00:01:46]} {[%emt 00:01:58]} 63. Kb2 {[%clk 00:41:06]} Ke5 {[%clk 00:01:12]}
{[%emt 00:01:09]} 64. f3 {[%clk 00:39:31]} Kf4 {[%clk 00:01:00]} {[%emt
00:02:48]} 65. Rh3 {[%clk 00:40:00]} f5 {[%clk 00:15:10]} {[%emt 00:01:21]} 66.
gxf5 {[%clk 00:55:11]} Kxf5 {[%clk 00:10:10]} {[%emt 00:05:49]} 67. h5 {[%clk
00:54:18]} {[%emt 00:01:23]} Rc3 {[%clk 00:02:25]} {[%emt 00:08:14]} 68. h6
{[%clk 00:50:56]} {[%emt 00:03:53]} Rc8 {[%clk 00:02:49]} {[%emt 00:00:06]} 69.
Kb3 {[%clk 00:50:31]} {[%emt 00:00:55]} Rh8 {[%clk 00:02:52]} {[%emt 00:00:27]}
70. h7 {[%clk 00:50:19]} {[%emt 00:00:42]} Kf6 {[%clk 00:02:11]} {[%emt
00:01:10]} 71. Rh4 {[%clk 00:50:48]} {[%emt 00:00:02]} Kg7 {[%clk 00:01:52]}
{[%emt 00:00:49]} 72. Rxb4 {[%clk 00:50:11]} {[%emt 00:01:08]} Rxh7 {[%clk
00:01:11]} {[%emt 00:01:10]} 73. Kc2 {[%clk 00:28:37]} {[%emt 00:22:05]} Kf6
{[%clk 00:01:33]} {[%emt 00:00:07]} 74. Kd3 {[%clk 00:29:03]} {[%emt 00:00:04]}
Ke5 {[%clk 00:01:27]} {[%emt 00:00:37]} 75. Rg4 {[%clk 00:27:19]} {[%emt
00:02:13]} Rf7 {[%clk 00:00:55]} {[%emt 00:01:01]} 76. Ke3 {[%clk 00:27:26]}
{[%emt 00:00:23]} Rg7 {[%clk 00:01:09]} {[%emt 00:00:17]} 77. Rg5+ {[%clk
00:27:43]} {[%emt 00:00:12]} Kd6 {[%clk 00:00:56]} {[%emt 00:00:44]} 78. Ke4
{[%clk 00:27:26]} {[%emt 00:00:47]} e5 {[%clk 00:00:38]} {[%emt 00:00:48]} 79.
Rg1 {[%clk 00:22:17]} {[%emt 00:05:39]} b5 {[%clk 00:00:42]} {[%emt 00:00:26]}
80. Rd1+ {[%clk 00:22:29]} {[%emt 00:00:17]} Ke6 {[%clk 00:00:45]} {[%emt
00:00:28]} 81. Rd5 {[%clk 00:21:56]} {[%emt 00:01:03]} Rb7 {[%clk 00:01:08]}
{[%emt 00:00:06]} 82. Rxe5+ {[%clk 00:22:20]} {[%emt 00:00:07]} Kf6 {[%clk
00:01:35]} {[%emt 00:00:03]} 83. Rc5 {[%clk 00:22:18]} {[%emt 00:00:31]} b4
{[%clk 00:01:59]} {[%emt 00:00:07]} 84. Rc6+ {[%clk 00:22:41]} {[%emt
00:00:07]} Kf7 {[%clk 00:02:08]} {[%emt 00:00:21]} 85. Rc2 {[%clk 00:18:45]}
{[%emt 00:04:26]} b3 {[%clk 00:02:33]} {[%emt 00:00:05]} 86. Rb2 {[%clk
00:19:14]} {[%emt 00:00:01]} Kf6 {[%clk 00:02:57]} {[%emt 00:00:06]} 87. Kd3
{[%clk 00:16:36]} {[%emt 00:03:08]} Kf5 {[%clk 00:03:12]} {[%emt 00:00:14]} 88.
Ke3 {[%clk 00:17:00]} {[%emt 00:00:07]} g5 {[%clk 00:03:14]} {[%emt 00:00:28]}
89. Ke2 {[%clk 00:17:11]} {[%emt 00:00:19]} Kf4 {[%clk 00:03:31]} {[%emt
00:00:13]} 90. Kf2 {[%clk 00:17:41]} Rb5 {[%clk 00:03:26]} {[%emt 00:00:35]} 91.
Rb1 {[%clk 00:17:14]} {[%emt 00:00:58]} b2 {[%clk 00:03:20]} {[%emt 00:00:35]}
92. Ke2 {[%clk 00:17:38]} {[%emt 00:00:06]} Rb3 {[%clk 00:03:19]} {[%emt
00:00:30]} 0-1

[Event "FIDE Grand Swiss 2023"]
[Site "Villa Marina, Douglas, Isle of Man, Isle Of Man"]
[Date "2023.10.26"]
[Round "2.12"]
[White "Huschenbeth, Niclas"]
[Black "Sargissian, Gabriel"]
[Result "1/2-1/2"]
[TimeControl "40/90 + 30 + 30s/move"]
[WhiteFideId "24604747"]
[BlackFideId "13300881"]
[WhiteElo "2605"]
[BlackElo "2686"]

1. e4 {[%clk 01:40:56]} {[%emt 00:00:02]} e5 {[%clk 01:40:54]} {[%emt
00:00:07]} 2. Nf3 {[%clk 01:41:18]} {[%emt 00:00:07]} Nc6 {[%clk 01:41:09]}
{[%emt 00:00:16]} 3. Bb5 {[%clk 01:41:41]} {[%emt 00:00:06]} a6 {[%clk
01:41:30]} {[%emt 00:00:10]} 4. Ba4 {[%clk 01:42:06]} {[%emt 00:00:05]} Nf6
{[%clk 01:41:04]} {[%emt 00:00:56]} 5. O-O {[%clk 01:42:27]} {[%emt 00:00:08]}
Be7 {[%clk 01:41:21]} {[%emt 00:00:14]} 6. Re1 {[%clk 01:42:48]} {[%emt
00:00:09]} b5 {[%clk 01:38:43]} {[%emt 00:03:08]} 7. Bb3 {[%clk 01:43:12]}
{[%emt 00:00:05]} O-O {[%clk 01:39:01]} {[%emt 00:00:12]} 8. h3 {[%clk
01:43:37]} {[%emt 00:00:05]} Bb7 {[%clk 01:38:02]} {[%emt 00:01:30]} 9. d3
{[%clk 01:43:57]} {[%emt 00:00:10]} d5 {[%clk 01:37:21]} {[%emt 00:01:11]} 10.
exd5 {[%clk 01:44:21]} {[%emt 00:00:05]} Nxd5 {[%clk 01:37:23]} {[%emt
00:00:27]} 11. Nbd2 {[%clk 01:44:43]} {[%emt 00:00:09]} Nd4 {[%clk 01:32:40]}
{[%emt 00:05:14]} 12. c3 {[%clk 01:40:38]} {[%emt 00:04:34]} Nxb3 {[%clk
01:31:22]} {[%emt 00:01:49]} 13. Nxb3 {[%clk 01:41:00]} {[%emt 00:00:08]} c5
{[%clk 01:28:23]} {[%emt 00:03:30]} 14. Nxe5 {[%clk 01:40:42]} {[%emt
00:00:47]} Qc7 {[%clk 01:23:44]} {[%emt 00:05:09]} 15. Bd2 {[%clk 01:32:29]}
{[%emt 00:08:42]} Bd6 {[%clk 01:20:50]} {[%emt 00:03:24]} 16. Nf3 {[%clk
01:21:17]} {[%emt 00:11:42]} Rad8 {[%clk 01:12:17]} {[%emt 00:09:04]} 17. d4
{[%clk 01:14:00]} {[%emt 00:07:46]} c4 {[%clk 01:08:22]} {[%emt 00:04:26]} 18.
Nc5 {[%clk 01:14:21]} {[%emt 00:00:09]} Bxc5 {[%clk 01:07:36]} {[%emt
00:01:17]} 19. dxc5 {[%clk 01:14:46]} {[%emt 00:00:04]} Nf6 {[%clk 00:50:13]}
{[%emt 00:17:53]} 20. Nd4 {[%clk 01:01:40]} {[%emt 00:13:35]} Ne4 {[%clk
00:49:04]} {[%emt 00:01:40]} 21. c6 {[%clk 00:50:33]} {[%emt 00:11:36]} Bxc6
{[%clk 00:49:07]} {[%emt 00:00:27]} 22. Qc2 {[%clk 00:44:07]} {[%emt 00:06:56]}
Nc5 {[%clk 00:46:11]} {[%emt 00:03:26]} 23. Bg5 {[%clk 00:37:41]} {[%emt
00:06:55]} f6 {[%clk 00:44:26]} {[%emt 00:02:17]} 24. Bh4 {[%clk 00:37:19]}
{[%emt 00:00:51]} Qd7 {[%clk 00:33:22]} {[%emt 00:11:33]} 25. f3 {[%clk
00:28:24]} {[%emt 00:09:26]} Bd5 {[%clk 00:27:07]} {[%emt 00:06:45]} 26. Re2
{[%clk 00:22:01]} {[%emt 00:06:53]} Nd3 {[%clk 00:26:13]} {[%emt 00:01:24]} 27.
Bg3 {[%clk 00:16:36]} {[%emt 00:05:55]} Rfe8 {[%clk 00:26:23]} {[%emt
00:00:21]} 28. Qd2 {[%clk 00:14:40]} {[%emt 00:02:25]} Bf7 {[%clk 00:25:55]}
{[%emt 00:00:57]} 29. Kh2 {[%clk 00:13:02]} {[%emt 00:02:08]} Bg6 {[%clk
00:25:07]} {[%emt 00:01:19]} 30. b3 {[%clk 00:10:00]} {[%emt 00:03:32]} Rxe2
{[%clk 00:21:36]} {[%emt 00:04:00]} 31. Nxe2 {[%clk 00:09:47]} {[%emt
00:00:43]} Bf7 {[%clk 00:14:28]} {[%emt 00:07:39]} 32. bxc4 {[%clk 00:06:55]}
{[%emt 00:03:22]} Bxc4 {[%clk 00:14:09]} {[%emt 00:00:48]} 33. Rd1 {[%clk
00:07:02]} {[%emt 00:00:24]} Nc5 {[%clk 00:09:02]} {[%emt 00:05:35]} 34. Nd4
{[%clk 00:05:38]} {[%emt 00:01:57]} Ne6 {[%clk 00:06:54]} {[%emt 00:02:37]} 35.
a3 {[%clk 00:04:40]} {[%emt 00:01:29]} Nxd4 {[%clk 00:06:43]} {[%emt 00:00:40]}
36. Qxd4 {[%clk 00:03:40]} {[%emt 00:01:30]} Qxd4 {[%clk 00:07:07]} {[%emt
00:00:07]} 37. Rxd4 {[%clk 00:03:57]} {[%emt 00:00:13]} Rxd4 {[%clk 00:07:32]}
{[%emt 00:00:04]} 38. cxd4 {[%clk 00:04:22]} {[%emt 00:00:05]} Kf7 {[%clk
00:07:06]} {[%emt 00:00:55]} 39. Be1 {[%clk 00:01:17]} {[%emt 00:03:35]} Ke6
{[%clk 00:07:25]} {[%emt 00:00:12]} 40. Kg3 {[%clk 00:01:24]} {[%emt 00:00:23]}
Kd5 {[%clk 00:07:38]} {[%emt 00:00:18]} 41. Bc3 {[%clk 00:00:48]} {[%emt
00:01:05]} Bd3 {[%clk 00:03:19]} {[%emt 00:04:49]} 42. Kf2 {[%clk 00:47:11]}
{[%emt 00:04:06]} Kc4 {[%clk 00:53:22]} {[%emt 00:00:27]} 43. Bb4 {[%clk
00:45:53]} {[%emt 00:01:49]} Kxd4 {[%clk 00:51:53]} {[%emt 00:01:59]} 44. f4
{[%clk 00:44:12]} {[%emt 00:02:10]} Kc4 {[%clk 00:49:11]} {[%emt 00:03:12]} 45.
Ke3 {[%clk 00:41:42]} {[%emt 00:03:00]} Bf5 {[%clk 00:44:23]} {[%emt 00:05:19]}
46. h4 {[%clk 00:42:02]} {[%emt 00:00:10]} h5 {[%clk 00:34:53]} {[%emt
00:10:00]} 47. g3 {[%clk 00:42:07]} {[%emt 00:00:24]} Bb1 {[%clk 00:34:09]}
{[%emt 00:01:15]} 48. Kd2 {[%clk 00:41:21]} {[%emt 00:01:16]} Kb3 {[%clk
00:34:02]} {[%emt 00:00:36]} 49. Kc1 {[%clk 00:38:00]} {[%emt 00:03:52]} Be4
{[%clk 00:33:16]} {[%emt 00:01:16]} 50. Kd2 {[%clk 00:38:21]} {[%emt 00:00:09]}
Bh7 {[%clk 00:29:54]} {[%emt 00:03:51]} 51. Kc1 {[%clk 00:37:21]} {[%emt
00:01:30]} Bf5 {[%clk 00:26:01]} {[%emt 00:04:23]} 52. Kd2 {[%clk 00:37:36]}
{[%emt 00:00:15]} Kb2 {[%clk 00:25:27]} {[%emt 00:01:05]} 53. Kd1 {[%clk
00:30:21]} {[%emt 00:07:45]} a5 {[%clk 00:22:13]} {[%emt 00:03:44]} 54. Bxa5
{[%clk 00:28:30]} {[%emt 00:02:20]} Kxa3 {[%clk 00:21:31]} {[%emt 00:01:13]} 55.
Bd8 {[%clk 00:17:05]} {[%emt 00:11:54]} b4 {[%clk 00:20:32]} {[%emt 00:01:30]}
56. Be7 {[%clk 00:17:24]} {[%emt 00:00:10]} Kb3 {[%clk 00:19:53]} {[%emt
00:01:09]} 57. Bf8 {[%clk 00:17:48]} {[%emt 00:00:07]} Kc3 {[%clk 00:19:24]}
{[%emt 00:00:59]} 58. Bxg7 {[%clk 00:18:10]} {[%emt 00:00:07]} b3 {[%clk
00:18:32]} {[%emt 00:01:22]} 1/2-1/2

[Event "FIDE Grand Swiss 2023"]
[Site "Villa Marina, Douglas, Isle of Man, Isle Of Man"]
[Date "2023.10.26"]
[Round "2.13"]
[White "Tabatabaei, M. Amin"]
[Black "Kuybokarov, Temur"]
[Result "1/2-1/2"]
[TimeControl "40/90 + 30 + 30s/move"]
[WhiteFideId "12521213"]
[BlackFideId "14203049"]
[WhiteElo "2685"]
[BlackElo "2584"]

1. c4 {[%clk 01:40:53]} {[%emt 00:00:06]} c5 {[%clk 01:40:27]} {[%emt
00:00:33]} 2. Nf3 {[%clk 01:40:54]} {[%emt 00:00:29]} Nf6 {[%clk 01:39:59]}
{[%emt 00:00:58]} 3. Nc3 {[%clk 01:40:47]} {[%emt 00:00:36]} e6 {[%clk
01:37:47]} {[%emt 00:02:44]} 4. e4 {[%clk 01:40:24]} {[%emt 00:00:52]} Nc6
{[%clk 01:37:27]} {[%emt 00:00:50]} 5. d4 {[%clk 01:40:43]} {[%emt 00:00:10]}
cxd4 {[%clk 01:36:55]} {[%emt 00:01:02]} 6. Nxd4 {[%clk 01:41:02]} {[%emt
00:00:12]} Bc5 {[%clk 01:36:19]} {[%emt 00:01:07]} 7. Nb3 {[%clk 01:40:23]}
{[%emt 00:01:07]} Bb4 {[%clk 01:34:49]} {[%emt 00:02:01]} 8. Bd3 {[%clk
01:40:40]} {[%emt 00:00:13]} O-O {[%clk 01:20:49]} {[%emt 00:14:29]} 9. O-O
{[%clk 01:40:49]} {[%emt 00:00:20]} Ne5 {[%clk 01:18:21]} {[%emt 00:02:59]} 10.
f4 {[%clk 01:40:00]} {[%emt 00:01:17]} Nxd3 {[%clk 01:14:42]} {[%emt 00:04:12]}
11. Qxd3 {[%clk 01:40:17]} {[%emt 00:00:12]} d6 {[%clk 01:09:23]} {[%emt
00:05:50]} 12. Bd2 {[%clk 01:14:07]} {[%emt 00:26:39]} b6 {[%clk 00:58:07]}
{[%emt 00:11:47]} 13. a3 {[%clk 01:10:38]} {[%emt 00:03:59]} Bxc3 {[%clk
00:48:04]} {[%emt 00:10:33]} 14. Bxc3 {[%clk 01:10:46]} {[%emt 00:00:22]} Ba6
{[%clk 00:46:36]} {[%emt 00:01:58]} 15. Nd4 {[%clk 01:08:52]} {[%emt 00:02:22]}
Qc7 {[%clk 00:32:46]} {[%emt 00:14:23]} 16. Nb5 {[%clk 00:55:31]} {[%emt
00:13:50]} Bxb5 {[%clk 00:32:16]} {[%emt 00:01:00]} 17. cxb5 {[%clk 00:55:44]}
{[%emt 00:00:17]} Rac8 {[%clk 00:22:53]} {[%emt 00:09:53]} 18. Bxf6 {[%clk
00:22:19]} {[%emt 00:33:55]} gxf6 {[%clk 00:21:13]} {[%emt 00:02:10]} 19. Qg3+
{[%clk 00:22:22]} {[%emt 00:00:27]} Kh8 {[%clk 00:21:36]} {[%emt 00:00:07]} 20.
Qh4 {[%clk 00:22:49]} {[%emt 00:00:03]} Qc5+ {[%clk 00:15:29]} {[%emt
00:06:36]} 21. Kh1 {[%clk 00:22:50]} {[%emt 00:00:29]} Rg8 {[%clk 00:14:59]}
{[%emt 00:01:00]} 22. Qxf6+ {[%clk 00:23:08]} {[%emt 00:00:12]} Rg7 {[%clk
00:15:24]} {[%emt 00:00:05]} 23. Rg1 {[%clk 00:17:15]} {[%emt 00:06:24]} Qxb5
{[%clk 00:13:41]} {[%emt 00:02:12]} 24. Rac1 {[%clk 00:16:30]} {[%emt
00:01:16]} Rc4 {[%clk 00:07:32]} {[%emt 00:06:39]} 25. Rcd1 {[%clk 00:05:14]}
{[%emt 00:11:45]} Qc6 {[%clk 00:07:21]} {[%emt 00:00:42]} 26. Qd8+ {[%clk
00:00:46]} {[%emt 00:04:58]} Rg8 {[%clk 00:07:46]} {[%emt 00:00:05]} 27. Qf6+
{[%clk 00:01:15]} {[%emt 00:00:01]} Rg7 {[%clk 00:08:12]} {[%emt 00:00:04]} 28.
Rd3 {[%clk 00:00:44]} {[%emt 00:01:01]} Rc1 {[%clk 00:08:28]} {[%emt 00:00:13]}
29. Qd8+ {[%clk 00:00:57]} {[%emt 00:00:18]} Rg8 {[%clk 00:08:54]} {[%emt
00:00:04]} 30. Qf6+ {[%clk 00:01:24]} {[%emt 00:00:02]} Rg7 {[%clk 00:09:21]}
{[%emt 00:00:04]} 31. Qd8+ {[%clk 00:00:32]} {[%emt 00:01:23]} Rg8 {[%clk
00:09:45]} {[%emt 00:00:04]} 32. Qxd6 {[%clk 00:00:32]} {[%emt 00:00:31]} Qxe4
{[%clk 00:08:20]} {[%emt 00:01:54]} 33. Qd4+ {[%clk 00:00:57]} {[%emt
00:00:06]} Qxd4 {[%clk 00:08:43]} {[%emt 00:00:07]} 34. Rxd4 {[%clk 00:01:25]}
{[%emt 00:00:01]} Rc2 {[%clk 00:05:25]} {[%emt 00:03:49]} 35. Rd7 {[%clk
00:01:28]} {[%emt 00:00:27]} Kg7 {[%clk 00:04:35]} {[%emt 00:01:20]} 36. b4
{[%clk 00:01:12]} {[%emt 00:00:46]} Ra8 {[%clk 00:03:46]} {[%emt 00:01:19]} 37.
h3 {[%clk 00:01:07]} {[%emt 00:00:35]} a5 {[%clk 00:03:03]} {[%emt 00:01:13]}
38. b5 {[%clk 00:00:39]} {[%emt 00:00:59]} Rb2 {[%clk 00:02:23]} {[%emt
00:01:09]} 39. Re1 {[%clk 00:00:44]} {[%emt 00:00:25]} Kf6 {[%clk 00:01:45]}
{[%emt 00:01:08]} 40. f5 {[%clk 00:00:52]} {[%emt 00:00:22]} Rg8 {[%clk
00:00:42]} {[%emt 00:01:32]} 41. fxe6 {[%clk 00:49:43]} {[%emt 00:01:39]} fxe6
{[%clk 00:50:15]} {[%emt 00:00:57]} 42. g4 {[%clk 00:47:43]} {[%emt 00:02:30]}
h5 {[%clk 00:47:53]} {[%emt 00:02:53]} 43. Rd6 {[%clk 00:46:26]} {[%emt
00:01:46]} hxg4 {[%clk 00:47:39]} {[%emt 00:00:45]} 44. Rxb6 {[%clk 00:45:41]}
{[%emt 00:01:15]} gxh3 {[%clk 00:46:23]} {[%emt 00:01:46]} 45. Rbxe6+ {[%clk
00:45:11]} {[%emt 00:00:59]} Kf5 {[%clk 00:46:20]} {[%emt 00:00:32]} 46. R6e5+
{[%clk 00:45:16]} {[%emt 00:00:26]} Kf4 {[%clk 00:46:22]} {[%emt 00:00:28]} 47.
R1e4+ {[%clk 00:37:08]} {[%emt 00:08:38]} Kf3 {[%clk 00:44:24]} {[%emt
00:02:27]} 48. Re3+ {[%clk 00:37:31]} {[%emt 00:00:08]} Kf2 {[%clk 00:43:16]}
{[%emt 00:01:37]} 49. Kh2 {[%clk 00:37:25]} {[%emt 00:00:37]} Rh8 {[%clk
00:38:02]} {[%emt 00:05:43]} 50. b6 {[%clk 00:34:19]} {[%emt 00:03:37]} Rxb6
{[%clk 00:37:36]} {[%emt 00:00:57]} 51. Re2+ {[%clk 00:34:47]} {[%emt
00:00:02]} Kf1 {[%clk 00:37:55]} {[%emt 00:00:10]} 52. Rc2 {[%clk 00:32:31]}
{[%emt 00:02:47]} Rg6 {[%clk 00:32:35]} {[%emt 00:05:46]} 53. Rf5+ {[%clk
00:31:37]} {[%emt 00:01:28]} 1/2-1/2